[Event "Early-Titled-Tuesday-Blitz-May-28-2024"]
[Site "Chess.com"]
[Date "2024.05.28"]
[Round "6"]
[White "BashiqChess"]
[Black "theoneandonlydaaevik"]
[Result "1-0"]
[WhiteElo "2435"]
[BlackElo "2597"]
[TimeControl "180+1"]
[EndTime "9:07:40 PDT"]
[Termination "BashiqChess won on time"]

1. Nf3 {[%clk 0:03:00.9]} 1... Nf6 {[%clk 0:02:57]} 2. b3 {[%clk 0:03:00.7]}
2... g6 {[%clk 0:02:55.9]} 3. Bb2 {[%clk 0:03:01.1]} 3... Bg7 {[%clk 0:02:55.3]}
4. g3 {[%clk 0:03:01.5]} 4... b6 {[%clk 0:02:53.9]} 5. Bg2 {[%clk 0:03:01.5]}
5... Bb7 {[%clk 0:02:54.6]} 6. O-O {[%clk 0:03:02.2]} 6... O-O {[%clk
0:02:53.6]} 7. c4 {[%clk 0:03:02.9]} 7... c5 {[%clk 0:02:53.1]} 8. d4 {[%clk
0:03:03.3]} 8... d5 {[%clk 0:02:53.4]} 9. dxc5 {[%clk 0:03:01]} 9... dxc4 {[%clk
0:02:52.1]} 10. Qxd8 {[%clk 0:02:58.9]} 10... Rxd8 {[%clk 0:02:50.6]} 11. cxb6
{[%clk 0:02:59.6]} 11... axb6 {[%clk 0:02:51.5]} 12. bxc4 {[%clk 0:02:59.7]}
12... Nbd7 {[%clk 0:02:16.2]} 13. Nbd2 {[%clk 0:02:55.8]} 13... Nc5 {[%clk
0:02:16.4]} 14. Nb3 {[%clk 0:02:49.3]} 14... Na4 {[%clk 0:02:11.5]} 15. Be5
{[%clk 0:02:46.6]} 15... Nd7 {[%clk 0:02:02.3]} 16. Bxg7 {[%clk 0:02:43.4]}
16... Kxg7 {[%clk 0:02:02.9]} 17. Nfd4 {[%clk 0:02:40.3]} 17... Bxg2 {[%clk
0:02:02.8]} 18. Kxg2 {[%clk 0:02:41.2]} 18... Rac8 {[%clk 0:02:03.2]} 19. Rac1
{[%clk 0:02:38.4]} 19... Ne5 {[%clk 0:02:03.5]} 20. Rfd1 {[%clk 0:02:29.8]}
20... Nb2 {[%clk 0:01:45.1]} 21. Rd2 {[%clk 0:02:11.7]} 21... Nbxc4 {[%clk
0:01:14.7]} 22. Rdc2 {[%clk 0:02:10.5]} 22... Ra8 {[%clk 0:01:10.9]} 23. Rxc4
{[%clk 0:01:53.3]} 23... Nxc4 {[%clk 0:01:08.9]} 24. Rxc4 {[%clk 0:01:54.2]}
24... Rxa2 {[%clk 0:01:09.4]} 25. Rc7 {[%clk 0:01:47.9]} 25... Kf8 {[%clk
0:01:06.5]} 26. f4 {[%clk 0:01:32.8]} 26... Ra4 {[%clk 0:01:01]} 27. e3 {[%clk
0:01:29.9]} 27... Ra2+ {[%clk 0:00:47.6]} 28. Kh3 {[%clk 0:01:07.7]} 28... Rd5
{[%clk 0:00:43.5]} 29. g4 {[%clk 0:01:05.3]} 29... h5 {[%clk 0:00:35.1]} 30. f5
{[%clk 0:00:40.4]} 30... hxg4+ {[%clk 0:00:20]} 31. Kxg4 {[%clk 0:00:41.3]}
31... Rxh2 {[%clk 0:00:09.7]} 32. fxg6 {[%clk 0:00:17.9]} 32... Rg2+ {[%clk
0:00:09.9]} 33. Kf3 {[%clk 0:00:13.6]} 33... Rxg6 {[%clk 0:00:10.7]} 34. e4
{[%clk 0:00:11.8]} 34... Rh5 {[%clk 0:00:07.3]} 35. Nf5 {[%clk 0:00:11.8]} 35...
Kg8 {[%clk 0:00:04]} 36. Nxe7+ {[%clk 0:00:11.8]} 36... Kg7 {[%clk 0:00:04.1]}
37. Nxg6 {[%clk 0:00:12.1]} 37... Kxg6 {[%clk 0:00:02.6]} 38. Nd4 {[%clk
0:00:11.6]} 1-0

[Event "Early-Titled-Tuesday-Blitz-May-28-2024"]
[Site "Chess.com"]
[Date "2024.05.28"]
[Round "6"]
[White "Likvidator228"]
[Black "Goryachkina"]
[Result "1/2-1/2"]
[WhiteElo "2535"]
[BlackElo "2685"]
[TimeControl "180+1"]
[EndTime "9:07:41 PDT"]
[Termination "Game drawn by repetition"]

1. d4 {[%clk 0:03:00.9]} 1... Nf6 {[%clk 0:02:59.4]} 2. Nf3 {[%clk 0:03:00.6]}
2... d5 {[%clk 0:02:58.1]} 3. Bf4 {[%clk 0:03:00.6]} 3... e6 {[%clk 0:02:55]} 4.
e3 {[%clk 0:03:00.8]} 4... Bd6 {[%clk 0:02:54.8]} 5. Bg3 {[%clk 0:02:59.7]} 5...
c5 {[%clk 0:02:53.6]} 6. Nbd2 {[%clk 0:02:59.2]} 6... O-O {[%clk 0:02:52.3]} 7.
c3 {[%clk 0:02:58.9]} 7... Qc7 {[%clk 0:02:45.2]} 8. Ne5 {[%clk 0:02:58.7]} 8...
Nfd7 {[%clk 0:02:37.6]} 9. Bd3 {[%clk 0:02:49.7]} 9... f5 {[%clk 0:02:33.9]} 10.
Nxd7 {[%clk 0:02:46.4]} 10... Bxd7 {[%clk 0:02:27.6]} 11. Bxd6 {[%clk
0:02:46.5]} 11... Qxd6 {[%clk 0:02:27.4]} 12. f4 {[%clk 0:02:46.9]} 12... Nc6
{[%clk 0:02:24.4]} 13. O-O {[%clk 0:02:43.9]} 13... c4 {[%clk 0:02:20.5]} 14.
Bc2 {[%clk 0:02:40]} 14... b5 {[%clk 0:02:20.4]} 15. b4 {[%clk 0:02:36.8]} 15...
a5 {[%clk 0:02:16.5]} 16. a3 {[%clk 0:02:34.1]} 16... Be8 {[%clk 0:01:44.9]} 17.
Qb1 {[%clk 0:02:25.6]} 17... Bh5 {[%clk 0:01:42.4]} 18. Bd1 {[%clk 0:02:22.1]}
18... Bxd1 {[%clk 0:01:39.1]} 19. Rxd1 {[%clk 0:02:20.7]} 19... Ra7 {[%clk
0:01:31.3]} 20. Qc2 {[%clk 0:01:39.9]} 20... Rfa8 {[%clk 0:01:29.5]} 21. Rab1
{[%clk 0:01:39.9]} 21... axb4 {[%clk 0:01:22.1]} 22. axb4 {[%clk 0:01:40.2]}
22... Ra3 {[%clk 0:01:21.2]} 23. Rb2 {[%clk 0:01:34.2]} 23... Nb8 {[%clk
0:01:08.9]} 24. Nb1 {[%clk 0:01:34.1]} 24... R3a6 {[%clk 0:01:05.7]} 25. Rd2
{[%clk 0:01:25.1]} 25... Nd7 {[%clk 0:01:05.4]} 26. Rd1 {[%clk 0:01:10.3]} 26...
Qe7 {[%clk 0:00:59.4]} 27. Qf2 {[%clk 0:01:06.5]} 27... Ra1 {[%clk 0:00:54.6]}
28. Qf1 {[%clk 0:01:01.8]} 28... Nb6 {[%clk 0:00:30.5]} 29. Nd2 {[%clk
0:01:01.1]} 29... Qa7 {[%clk 0:00:26.8]} 30. Kf2 {[%clk 0:00:49.1]} 30... Qa3
{[%clk 0:00:22]} 31. Rxa1 {[%clk 0:00:47.4]} 31... Qxa1 {[%clk 0:00:15.7]} 32.
Qxa1 {[%clk 0:00:41.5]} 32... Rxa1 {[%clk 0:00:16.6]} 33. Rc2 {[%clk 0:00:33.3]}
33... Na4 {[%clk 0:00:15.1]} 34. Ke2 {[%clk 0:00:31.5]} 34... Ra3 {[%clk
0:00:14.8]} 35. Nb1 {[%clk 0:00:27.3]} 35... Rb3 {[%clk 0:00:13.5]} 36. Rc1
{[%clk 0:00:20.4]} 36... Rxb1 {[%clk 0:00:13.7]} 37. Rxb1 {[%clk 0:00:20]} 37...
Nxc3+ {[%clk 0:00:14.3]} 38. Kd2 {[%clk 0:00:20.7]} 38... Nxb1+ {[%clk
0:00:14.7]} 39. Kc2 {[%clk 0:00:21.2]} 39... Kf7 {[%clk 0:00:08.2]} 40. Kxb1
{[%clk 0:00:21.4]} 40... Kg6 {[%clk 0:00:08.2]} 41. g3 {[%clk 0:00:20.3]} 41...
Kh5 {[%clk 0:00:07]} 42. h3 {[%clk 0:00:20.4]} 42... g5 {[%clk 0:00:04.9]} 43.
Kc2 {[%clk 0:00:18.3]} 43... Kg6 {[%clk 0:00:02.7]} 44. Kd2 {[%clk 0:00:18.2]}
44... Kf6 {[%clk 0:00:02.1]} 45. Kc2 {[%clk 0:00:17.6]} 45... g4 {[%clk
0:00:02.2]} 46. h4 {[%clk 0:00:17.7]} 46... Kf7 {[%clk 0:00:02.4]} 47. Kc3
{[%clk 0:00:17.5]} 47... Ke7 {[%clk 0:00:02.9]} 48. Kc2 {[%clk 0:00:18.1]} 48...
Kf7 {[%clk 0:00:03.5]} 49. Kc3 {[%clk 0:00:18.6]} 49... Ke7 {[%clk 0:00:04.1]}
50. Kc2 {[%clk 0:00:19.2]} 50... Kf7 {[%clk 0:00:04.6]} 1/2-1/2

[Event "Early-Titled-Tuesday-Blitz-May-28-2024"]
[Site "Chess.com"]
[Date "2024.05.28"]
[Round "6"]
[White "MatthewG-p4p"]
[Black "twofoxniel"]
[Result "1/2-1/2"]
[WhiteElo "2886"]
[BlackElo "2700"]
[TimeControl "180+1"]
[EndTime "9:07:44 PDT"]
[Termination "Game drawn by repetition"]

1. f4 {[%clk 0:02:49.4]} 1... d5 {[%clk 0:02:52.6]} 2. Nf3 {[%clk 0:02:49.7]}
2... Nf6 {[%clk 0:02:52.9]} 3. g3 {[%clk 0:02:50.2]} 3... Bg4 {[%clk 0:02:51.7]}
4. Bg2 {[%clk 0:02:50.9]} 4... c6 {[%clk 0:02:51.8]} 5. O-O {[%clk 0:02:51.5]}
5... Nbd7 {[%clk 0:02:52]} 6. d3 {[%clk 0:02:52.1]} 6... Bxf3 {[%clk 0:02:51.4]}
7. Bxf3 {[%clk 0:02:53]} 7... e5 {[%clk 0:02:51.8]} 8. Nc3 {[%clk 0:02:53.8]}
8... Bd6 {[%clk 0:02:50.1]} 9. e4 {[%clk 0:02:53.7]} 9... dxe4 {[%clk
0:02:41.5]} 10. dxe4 {[%clk 0:02:50.1]} 10... Bc5+ {[%clk 0:02:41.4]} 11. Kh1
{[%clk 0:02:50.2]} 11... Qe7 {[%clk 0:02:40.2]} 12. Qe2 {[%clk 0:02:48.3]} 12...
h5 {[%clk 0:02:37.8]} 13. f5 {[%clk 0:02:46]} 13... O-O-O {[%clk 0:02:33.6]} 14.
Bg5 {[%clk 0:02:45.3]} 14... Bd4 {[%clk 0:02:29.9]} 15. Nd1 {[%clk 0:02:42.7]}
15... Bb6 {[%clk 0:02:23.3]} 16. a4 {[%clk 0:02:39.7]} 16... a6 {[%clk
0:02:17.7]} 17. a5 {[%clk 0:02:38.8]} 17... Ba7 {[%clk 0:02:17.6]} 18. Ne3
{[%clk 0:02:36.8]} 18... Qb4 {[%clk 0:02:12.7]} 19. c3 {[%clk 0:02:30.7]} 19...
Qc5 {[%clk 0:02:10.6]} 20. Nc4 {[%clk 0:02:26.8]} 20... Kb8 {[%clk 0:01:43.2]}
21. b4 {[%clk 0:01:59.9]} 21... Qe7 {[%clk 0:01:38.3]} 22. Rad1 {[%clk
0:01:59.2]} 22... c5 {[%clk 0:01:29.9]} 23. b5 {[%clk 0:01:47.3]} 23... axb5
{[%clk 0:01:30]} 24. Nd6 {[%clk 0:01:47.5]} 24... b4 {[%clk 0:01:17.2]} 25. Qb5
{[%clk 0:00:55.6]} 25... Nf8 {[%clk 0:01:05.3]} 26. Nxb7 {[%clk 0:00:48.4]}
26... Rxd1 {[%clk 0:00:56.5]} 27. Nxc5+ {[%clk 0:00:47.2]} 27... Kc8 {[%clk
0:00:48.7]} 28. Qa6+ {[%clk 0:00:19.2]} 28... Kb8 {[%clk 0:00:47.8]} 29. Rxd1
{[%clk 0:00:10.4]} 29... Bxc5 {[%clk 0:00:48.2]} 30. cxb4 {[%clk 0:00:10.9]}
30... Bd4 {[%clk 0:00:48.5]} 31. Qb5+ {[%clk 0:00:09.8]} 31... Qb7 {[%clk
0:00:47.1]} 32. Qc4 {[%clk 0:00:10.3]} 32... N8d7 {[%clk 0:00:46.6]} 33. Qxf7
{[%clk 0:00:10]} 33... Ng4 {[%clk 0:00:43.7]} 34. Qxg7 {[%clk 0:00:06.2]} 34...
Rc8 {[%clk 0:00:37.1]} 35. Bxg4 {[%clk 0:00:05.8]} 35... hxg4 {[%clk 0:00:38]}
36. f6 {[%clk 0:00:06.4]} 36... Qb5 {[%clk 0:00:33.5]} 37. Re1 {[%clk
0:00:03.8]} 37... Qd3 {[%clk 0:00:32.5]} 38. Be3 {[%clk 0:00:01]} 38... Bxe3
{[%clk 0:00:26]} 39. Qxg4 {[%clk 0:00:01.7]} 39... Bf2 {[%clk 0:00:24.4]} 40.
Rd1 {[%clk 0:00:01.8]} 40... Qe3 {[%clk 0:00:21.8]} 41. Kg2 {[%clk 0:00:02.2]}
41... Rc2 {[%clk 0:00:20.8]} 42. Kh3 {[%clk 0:00:01.7]} 42... Qh6+ {[%clk
0:00:21]} 43. Qh4 {[%clk 0:00:02.4]} 43... Qxf6 {[%clk 0:00:21.1]} 44. Rxd7
{[%clk 0:00:01.7]} 44... Qe6+ {[%clk 0:00:21.2]} 45. Qg4 {[%clk 0:00:02.3]}
45... Qh6+ {[%clk 0:00:20.4]} 46. Qh4 {[%clk 0:00:02.9]} 46... Qe6+ {[%clk
0:00:20.4]} 47. Qg4 {[%clk 0:00:03.6]} 47... Qh6+ {[%clk 0:00:19]} 48. Qh4
{[%clk 0:00:04.2]} 48... Qe6+ {[%clk 0:00:17.5]} 1/2-1/2

[Event "Early-Titled-Tuesday-Blitz-May-28-2024"]
[Site "Chess.com"]
[Date "2024.05.28"]
[Round "6"]
[White "bubeliang"]
[Black "Zq1"]
[Result "1-0"]
[WhiteElo "2791"]
[BlackElo "2550"]
[TimeControl "180+1"]
[EndTime "9:07:44 PDT"]
[Termination "bubeliang won on time"]

1. e4 {[%clk 0:02:57.9]} 1... c5 {[%clk 0:02:59.4]} 2. c3 {[%clk 0:02:53.6]}
2... d5 {[%clk 0:02:59]} 3. exd5 {[%clk 0:02:54.5]} 3... Nf6 {[%clk 0:02:58.7]}
4. Qa4+ {[%clk 0:02:51.6]} 4... Nbd7 {[%clk 0:02:56.9]} 5. Qb3 {[%clk
0:02:52.1]} 5... Nb6 {[%clk 0:02:52]} 6. Bb5+ {[%clk 0:02:51.3]} 6... Bd7 {[%clk
0:02:51]} 7. c4 {[%clk 0:02:51.5]} 7... g6 {[%clk 0:02:38.2]} 8. Nf3 {[%clk
0:02:50]} 8... Bg7 {[%clk 0:02:37.9]} 9. O-O {[%clk 0:02:50.5]} 9... O-O {[%clk
0:02:37.6]} 10. Bxd7 {[%clk 0:02:49.4]} 10... Qxd7 {[%clk 0:02:36.6]} 11. d3
{[%clk 0:02:49.8]} 11... e6 {[%clk 0:02:35]} 12. dxe6 {[%clk 0:02:49]} 12...
Qxe6 {[%clk 0:02:30.1]} 13. Nc3 {[%clk 0:02:47.3]} 13... Rfd8 {[%clk 0:02:25.2]}
14. Re1 {[%clk 0:02:44.9]} 14... Qd6 {[%clk 0:02:18.4]} 15. Bg5 {[%clk
0:02:39.7]} 15... Qxd3 {[%clk 0:02:11.5]} 16. Bxf6 {[%clk 0:02:29.9]} 16... Bxf6
{[%clk 0:02:10.4]} 17. Ne4 {[%clk 0:02:28.9]} 17... Bg7 {[%clk 0:01:59.5]} 18.
Qxd3 {[%clk 0:02:05.7]} 18... Rxd3 {[%clk 0:01:58]} 19. Nxc5 {[%clk 0:02:06.6]}
19... Rdd8 {[%clk 0:01:42]} 20. Nxb7 {[%clk 0:02:01.5]} 20... Rdb8 {[%clk
0:01:35.2]} 21. Nd6 {[%clk 0:02:01.1]} 21... Na4 {[%clk 0:01:25.4]} 22. Rab1
{[%clk 0:01:53.9]} 22... Nxb2 {[%clk 0:01:20.3]} 23. g3 {[%clk 0:01:42.1]} 23...
Bf8 {[%clk 0:01:14.9]} 24. Nb5 {[%clk 0:01:38.5]} 24... Nxc4 {[%clk 0:01:10.3]}
25. Nc7 {[%clk 0:01:34.2]} 25... Rxb1 {[%clk 0:01:08.9]} 26. Rxb1 {[%clk
0:01:35.1]} 26... Rc8 {[%clk 0:01:08.4]} 27. Nd5 {[%clk 0:01:34.8]} 27... Kg7
{[%clk 0:01:06.8]} 28. Rb7 {[%clk 0:01:33]} 28... a5 {[%clk 0:01:02.8]} 29. Ng5
{[%clk 0:01:17.8]} 29... Nd6 {[%clk 0:00:57.6]} 30. Ra7 {[%clk 0:01:17.4]} 30...
Rc2 {[%clk 0:00:31.9]} 31. Ne6+ {[%clk 0:01:11.5]} 31... Kg8 {[%clk 0:00:31.3]}
32. Nf6+ {[%clk 0:01:10.1]} 32... Kh8 {[%clk 0:00:31.2]} 33. Nxf8 {[%clk
0:01:10.5]} 33... Kg7 {[%clk 0:00:31.2]} 34. N8xh7 {[%clk 0:01:06.5]} 34... Rxa2
{[%clk 0:00:29.7]} 35. g4 {[%clk 0:00:55.9]} 35... a4 {[%clk 0:00:26.4]} 36. g5
{[%clk 0:00:55.3]} 36... Nf5 {[%clk 0:00:20.9]} 37. Ra8 {[%clk 0:00:44.3]} 37...
Ne7 {[%clk 0:00:19.7]} 38. Nf8 {[%clk 0:00:43.1]} 38... Rc2 {[%clk 0:00:07]} 39.
N8d7 {[%clk 0:00:38.6]} 39... Rc4 {[%clk 0:00:04.8]} 40. Kg2 {[%clk 0:00:29.9]}
40... Rf4 {[%clk 0:00:01.3]} 41. Kg3 {[%clk 0:00:29.6]} 41... Rc4 {[%clk
0:00:01.3]} 42. Kf3 {[%clk 0:00:30.2]} 42... Rc3+ {[%clk 0:00:01.5]} 43. Ke2
{[%clk 0:00:30.2]} 43... a3 {[%clk 0:00:01.9]} 44. Ne8+ {[%clk 0:00:30]} 44...
Kh7 {[%clk 0:00:01]} 45. Ndf6+ {[%clk 0:00:30]} 45... Kh8 {[%clk 0:00:01]} 46.
Nc7+ {[%clk 0:00:27.3]} 46... Kg7 {[%clk 0:00:01.1]} 47. Ncd5 {[%clk 0:00:24.9]}
47... Nxd5 {[%clk 0:00:00.9]} 48. Nxd5 {[%clk 0:00:25.8]} 48... Rc2+ {[%clk
0:00:01]} 49. Kd3 {[%clk 0:00:25.2]} 49... Rxf2 {[%clk 0:00:00.4]} 50. Nf6
{[%clk 0:00:25.4]} 1-0

[Event "Early-Titled-Tuesday-Blitz-May-28-2024"]
[Site "Chess.com"]
[Date "2024.05.28"]
[Round "6"]
[White "NowInChess"]
[Black "jlf287"]
[Result "0-1"]
[WhiteElo "2238"]
[BlackElo "2496"]
[TimeControl "180+1"]
[EndTime "9:07:46 PDT"]
[Termination "jlf287 won by resignation"]

1. e4 {[%clk 0:03:00.9]} 1... e5 {[%clk 0:02:58.7]} 2. Nf3 {[%clk 0:03:01]} 2...
Nc6 {[%clk 0:02:58.7]} 3. d4 {[%clk 0:03:01.4]} 3... exd4 {[%clk 0:02:58.9]} 4.
Bc4 {[%clk 0:03:01.8]} 4... Nf6 {[%clk 0:02:59.5]} 5. e5 {[%clk 0:03:01.6]} 5...
d5 {[%clk 0:02:59.5]} 6. Bb5 {[%clk 0:03:02.2]} 6... Ne4 {[%clk 0:03:00.1]} 7.
Nxd4 {[%clk 0:03:02.1]} 7... Bd7 {[%clk 0:03:00.8]} 8. Bxc6 {[%clk 0:03:02]}
8... bxc6 {[%clk 0:03:01.3]} 9. O-O {[%clk 0:03:02.1]} 9... Bc5 {[%clk 0:03:02]}
10. f3 {[%clk 0:03:00.5]} 10... Ng5 {[%clk 0:03:02.6]} 11. f4 {[%clk 0:03:00.7]}
11... Ne4 {[%clk 0:03:03]} 12. Be3 {[%clk 0:03:01]} 12... Bb6 {[%clk 0:03:02.5]}
13. Nc3 {[%clk 0:02:52.8]} 13... c5 {[%clk 0:02:52.2]} 14. Nf3 {[%clk
0:02:12.4]} 14... Nxc3 {[%clk 0:02:23.9]} 15. bxc3 {[%clk 0:02:13.3]} 15... Bf5
{[%clk 0:02:21.7]} 16. a4 {[%clk 0:01:55.1]} 16... d4 {[%clk 0:02:16.3]} 17.
cxd4 {[%clk 0:01:46.2]} 17... cxd4 {[%clk 0:02:16.3]} 18. Bxd4 {[%clk 0:01:43]}
18... Bxc2 {[%clk 0:02:12.7]} 19. Qxc2 {[%clk 0:01:34.9]} 19... Bxd4+ {[%clk
0:02:12.2]} 20. Nxd4 {[%clk 0:01:22.9]} 20... Qxd4+ {[%clk 0:02:11.9]} 21. Qf2
{[%clk 0:01:16.8]} 21... Qxf2+ {[%clk 0:02:08.8]} 22. Rxf2 {[%clk 0:01:17.7]}
22... O-O-O {[%clk 0:02:07.8]} 23. Rc2 {[%clk 0:01:01.1]} 23... Rhe8 {[%clk
0:01:54.4]} 24. Rac1 {[%clk 0:00:59.9]} 24... Re7 {[%clk 0:01:54.8]} 25. Kf2
{[%clk 0:00:50.5]} 25... Rd4 {[%clk 0:01:54.4]} 26. Rc4 {[%clk 0:00:46.6]} 26...
Red7 {[%clk 0:01:46.5]} 27. Ke3 {[%clk 0:00:42.9]} 27... Rd3+ {[%clk 0:01:32.2]}
28. Ke4 {[%clk 0:00:42.5]} 28... Rd2 {[%clk 0:01:32.7]} 29. R1c2 {[%clk
0:00:38]} 29... R7d4+ {[%clk 0:01:29.4]} 30. Ke3 {[%clk 0:00:21]} 30... Rxc2
{[%clk 0:01:27.6]} 31. Kxd4 {[%clk 0:00:18.7]} 31... Rxg2 {[%clk 0:01:27]} 32.
Kd5 {[%clk 0:00:14.1]} 32... Kd7 {[%clk 0:01:23]} 33. f5 {[%clk 0:00:12.6]}
33... Rd2+ {[%clk 0:01:17.2]} 34. Kc5 {[%clk 0:00:11.6]} 34... Rxh2 {[%clk
0:01:09.7]} 35. Rd4+ {[%clk 0:00:08]} 35... Kc8 {[%clk 0:01:10.3]} 36. Kb5
{[%clk 0:00:04.9]} 36... Re2 {[%clk 0:01:05.2]} 37. e6 {[%clk 0:00:01]} 37...
fxe6 {[%clk 0:01:03.7]} 38. fxe6 {[%clk 0:00:01.4]} 38... Re5+ {[%clk
0:01:00.8]} 39. Ka6 {[%clk 0:00:01.2]} 39... Rxe6+ {[%clk 0:00:59]} 40. Kxa7
{[%clk 0:00:02.1]} 40... c5 {[%clk 0:00:54.3]} 41. Rc4 {[%clk 0:00:01.9]} 41...
Rc6 {[%clk 0:00:54.6]} 42. a5 {[%clk 0:00:02.1]} 42... g5 {[%clk 0:00:49.1]} 43.
a6 {[%clk 0:00:01]} 43... Kc7 {[%clk 0:00:42.1]} 44. Re4 {[%clk 0:00:01.3]}
44... c4 {[%clk 0:00:41.3]} 45. Re7+ {[%clk 0:00:01.1]} 45... Kd6 {[%clk
0:00:41.5]} 46. Rxh7 {[%clk 0:00:01]} 46... c3 {[%clk 0:00:42]} 47. Rh6+ {[%clk
0:00:01.2]} 47... Kd5 {[%clk 0:00:39.9]} 48. Rxc6 {[%clk 0:00:02.1]} 48... Kxc6
{[%clk 0:00:40.8]} 49. Kb8 {[%clk 0:00:02.6]} 49... c2 {[%clk 0:00:41.4]} 50. a7
{[%clk 0:00:03.2]} 50... c1=Q {[%clk 0:00:41.8]} 51. a8=Q+ {[%clk 0:00:03.8]}
51... Kd6 {[%clk 0:00:40.8]} 52. Qa6+ {[%clk 0:00:03.5]} 52... Kd5 {[%clk
0:00:35.9]} 53. Qd3+ {[%clk 0:00:03.4]} 53... Ke5 {[%clk 0:00:33.7]} 54. Qe2+
{[%clk 0:00:03.8]} 54... Kf5 {[%clk 0:00:33.6]} 55. Qf3+ {[%clk 0:00:03.9]}
55... Qf4+ {[%clk 0:00:32.8]} 56. Qxf4+ {[%clk 0:00:02.3]} 56... gxf4 {[%clk
0:00:33.7]} 0-1

[Event "Early-Titled-Tuesday-Blitz-May-28-2024"]
[Site "Chess.com"]
[Date "2024.05.28"]
[Round "6"]
[White "kecalk"]
[Black "AradNazari"]
[Result "0-1"]
[WhiteElo "2548"]
[BlackElo "2789"]
[TimeControl "180+1"]
[EndTime "9:07:48 PDT"]
[Termination "AradNazari won on time"]

1. e4 {[%clk 0:02:59.1]} 1... c5 {[%clk 0:03:00]} 2. Nf3 {[%clk 0:02:59.1]} 2...
d6 {[%clk 0:02:59.9]} 3. d4 {[%clk 0:02:59.4]} 3... cxd4 {[%clk 0:03:00.8]} 4.
Nxd4 {[%clk 0:03:00.3]} 4... Nf6 {[%clk 0:03:00.8]} 5. Nc3 {[%clk 0:03:00.3]}
5... a6 {[%clk 0:03:01.5]} 6. Bd3 {[%clk 0:03:00.2]} 6... g6 {[%clk 0:02:59.9]}
7. f3 {[%clk 0:02:59.3]} 7... Bg7 {[%clk 0:03:00.5]} 8. Be3 {[%clk 0:02:56.9]}
8... O-O {[%clk 0:02:58.1]} 9. Qd2 {[%clk 0:02:56.4]} 9... Nc6 {[%clk
0:02:58.4]} 10. O-O-O {[%clk 0:02:56.2]} 10... Nxd4 {[%clk 0:02:55.3]} 11. Bxd4
{[%clk 0:02:56]} 11... Be6 {[%clk 0:02:56]} 12. g4 {[%clk 0:02:52.4]} 12... b5
{[%clk 0:02:51.2]} 13. h4 {[%clk 0:02:42.6]} 13... Qa5 {[%clk 0:02:34.2]} 14. g5
{[%clk 0:02:20.2]} 14... Nh5 {[%clk 0:02:28]} 15. Bxg7 {[%clk 0:02:20.3]} 15...
Nxg7 {[%clk 0:02:28.5]} 16. h5 {[%clk 0:02:06.6]} 16... b4 {[%clk 0:01:33]} 17.
Nb1 {[%clk 0:01:40.6]} 17... Nxh5 {[%clk 0:01:25.4]} 18. f4 {[%clk 0:01:33.5]}
18... Bxa2 {[%clk 0:01:18.8]} 19. Rxh5 {[%clk 0:01:15.2]} 19... gxh5 {[%clk
0:01:17.3]} 20. Qh2 {[%clk 0:01:15.8]} 20... f5 {[%clk 0:00:52.2]} 21. Qxh5
{[%clk 0:01:10.3]} 21... Bf7 {[%clk 0:00:47]} 22. Bc4 {[%clk 0:00:54.5]} 22...
d5 {[%clk 0:00:22.7]} 23. Bxd5 {[%clk 0:00:52.6]} 23... e6 {[%clk 0:00:22.9]}
24. g6 {[%clk 0:00:20.2]} 24... Bxg6 {[%clk 0:00:23]} 25. Rg1 {[%clk 0:00:15.5]}
25... Kg7 {[%clk 0:00:17.7]} 26. Bxe6 {[%clk 0:00:12.5]} 26... Qb6 {[%clk
0:00:15]} 27. Qg5 {[%clk 0:00:08]} 27... Qxe6 {[%clk 0:00:14.7]} 28. e5 {[%clk
0:00:08.7]} 28... Rad8 {[%clk 0:00:14.3]} 29. Nd2 {[%clk 0:00:08.9]} 29... h6
{[%clk 0:00:08.5]} 30. Qg3 {[%clk 0:00:06.9]} 30... Kh7 {[%clk 0:00:08.3]} 31.
Nf3 {[%clk 0:00:07.1]} 31... Rg8 {[%clk 0:00:08.8]} 32. Rh1 {[%clk 0:00:07.5]}
32... Bf7 {[%clk 0:00:07.1]} 33. Ng5+ {[%clk 0:00:07.5]} 33... Rxg5 {[%clk
0:00:05.2]} 34. Qxg5 {[%clk 0:00:07.5]} 34... Rg8 {[%clk 0:00:05.6]} 35. Qh4
{[%clk 0:00:06.6]} 35... Rg4 {[%clk 0:00:05.5]} 36. Qf2 {[%clk 0:00:05]} 36...
h5 {[%clk 0:00:04.6]} 37. Kb1 {[%clk 0:00:03.6]} 37... Qh6 {[%clk 0:00:04.9]}
38. Qa7 {[%clk 0:00:02.3]} 38... Rg7 {[%clk 0:00:05.1]} 39. Qc5 {[%clk
0:00:01.2]} 39... h4 {[%clk 0:00:05.1]} 40. Qd4 {[%clk 0:00:01.1]} 40... Rg4
{[%clk 0:00:03.9]} 0-1